[Event "79th ARM-ch 1st League 2018"]
[Site "Yerevan"]
[Date "2018.08.17"]
[Round "8"]
[White "Sargsyan, Shant"]
[Black "Hayrapetyan, Hovik"]
[Result "1/2-1/2"]
[ECO "B41"]
[WhiteElo "2472"]
[BlackElo "2439"]
[Annotator "ChessBase"]
[PlyCount "209"]
[EventDate "2018.08.09"]
[EventType "tourn"]
[EventCountry "ARM"]
[SourceTitle "playchess.com"]
[Source "ChessBase"]
[SourceQuality "1"]
[TimeControl "40/5400+30:1800+30"]

1. e4 {[%emt 0:00:29]} c5 {[%emt 0:01:30]} 2. Nf3 {[%emt 0:00:10]} e6 {[%emt 0:00:04]} 3. d4 {[%emt 0:00:26]} cxd4 {[%emt 0:00:04]} 4. Nxd4 {[%emt 0:00:05]} a6 {[%emt 0:00:03]} 5. c4 {[%emt 0:00:53]} Nf6 {[%emt 0:00:46]} 6. Nc3 {[%emt 0:00:10]} Qc7 {[%emt 0:00:36]} 7. Be2 {[%emt 0:00:52]} b6 {[%emt 0:01:31]} 8. O-O {[%emt 0:00:47]} Bb7 {[%emt 0:00:22]} 9. Qd3 {[%emt 0:01:27]} Bb4 {[%emt 0:04:37]} 10. Nd5 {[%emt 0:22:48]} exd5 {[%emt 0:02:02]} 11. exd5 {[%emt 0:01:05]} O-O {[%emt 0:03:33]} 12. Nf5 {[%emt 0:04:57]} Qe5 {[%emt 0:15:14]} 13. a3 {[%emt 0:13:51]} Bc5 {[%emt 0:43:26]} 14. b4 {[%emt 0:07:51]} Qxa1 {[%emt 0:16:30]} 15. Bf4 {[%emt 0:03:36]} Qb2 {[%emt 0:01:08]} 16. Rb1 {[%emt 0:01:46]} Qa2 {[%emt 0:00:02]} 17. bxc5 {[%emt 0:13:58]} Re8 {[%emt 0:01:05]} 18. Bf1 {[%emt 0:00:44]} Ne4 {[%emt 0:00:23]} 19. Qd4 {[%emt 0:01:20]} f6 {[%emt 0:00:01]} 20. Rxb6 {[%emt 0:01:21]} Qxa3 {[%emt 0:05:34]} 21. Rxb7 {[%emt 0:04:29]} Qxc5 {[%emt 0:00:01]} 22. Qb2 {[%emt 0:00:08]} a5 {[%emt 0:00:32]} 23. Rb5 {[%emt 0:02:07]} Qa7 {[%emt 0:01:54]} 24. Be3 {[%emt 0:01:01]} Qc7 {[%emt 0:00:25]} 25. f3 {[%emt 0:00:57]} Nd6 {[%emt 0:00:34]} 26. Bb6 {[%emt 0:00:34]} Nxc4 {[%emt 0:00:30]} 27. Bxc7 {[%emt 0:01:23]} Nxb2 {[%emt 0:00:02]} 28. Rxb2 {[%emt 0:00:28]} a4 {[%emt 0:00:23]} 29. Ra2 {[%emt 0:00:46]} g6 {[%emt 0:01:06]} 30. Nd6 {[%emt 0:01:11]} Re1 {[%emt 0:00:01]} 31. Nc4 {[%emt 0:00:33]} Na6 {[%emt 0:00:54]} 32. Bd6 {[%emt 0:01:11]} Rc8 {[%emt 0:00:00]} 33. Rxa4 {[%emt 0:01:21]} Nc5 {[%emt 0:00:20]} 34. Bxc5 {[%emt 0:02:44]} Rxc5 {[%emt 0:00:01]} 35. Kf2 {[%emt 0:00:10]} Rc1 {[%emt 0:00:24]} 36. Ne3 {[%emt 0:00:17]} f5 {[%emt 0:00:46]} 37. f4 {[%emt 0:00:41]} Kf7 {[%emt 0:00:40]} 38. Be2 {[%emt 0:01:59]} Rb1 {[%emt 0:00:28]} 39. Ra7 {[%emt 0:01:40]} Ke7 {[%emt 0:00:14]} 40. Ra8 {[%emt 0:00:00]} Rb4 {[%emt 0:00:00]} 41. g3 {[%emt 0:03:30]} Rc3 {[%emt 0:03:35]} 42. Ra2 {[%emt 0:03:23]} Rd4 {[%emt 0:01:12]} 43. Bf3 {[%emt 0:02:31]} Rdd3 {[%emt 0:01:35]} 44. Re2 {[%emt 0:00:16]} Kf6 {[%emt 0:00:46]} 45. Bg2 {[%emt 0:02:30]} h6 {[%emt 0:00:12]} 46. Nf1 {[%emt 0:08:02]} g5 {[%emt 0:01:19]} 47. fxg5+ {[%emt 0:01:28]} hxg5 {[%emt 0:00:01]} 48. Nd2 {[%emt 0:00:15]} g4 {[%emt 0:00:50]} 49. Nf1 {[%emt 0:01:03]} Rd4 {[%emt 0:00:05]} 50. Ne3 {[%emt 0:03:10]} Kg5 {[%emt 0:00:10]} 51. h4+ {[%emt 0:02:46]} gxh3 {[%emt 0:00:34]} 52. Bxh3 {[%emt 0:00:00]} f4 {[%emt 0:00:09]} 53. gxf4+ {[%emt 0:00:08]} Rxf4+ {[%emt 0:00:22]} 54. Ke1 {[%emt 0:00:10]} Rd4 {[%emt 0:18:04]} 55. Bxd7 {[%emt 0:02:38]} Rxe3 {[%emt 0:02:13]} 56. Rxe3 {[%emt 0:00:04]} Rxd5 {[%emt 0:00:02]} 57. Bc6 {[%emt 0:01:13]} Kf4 {[%emt 0:00:30]} 58. Rc3 {[%emt 0:00:10]} Rd4 {[%emt 0:00:16]} 59. Ke2 {[%emt 0:00:18]} Rb4 {[%emt 0:01:02]} 60. Kd3 {[%emt 0:00:23]} Ke5 {[%emt 0:00:20]} 61. Ke3 {[%emt 0:00:16]} Rb1 {[%emt 0:00:31]} 62. Bf3 {[%emt 0:00:35]} Rb5 {[%emt 0:00:35]} 63. Ra3 {[%emt 0:00:31]} Rc5 {[%emt 0:00:07]} 64. Be2 {[%emt 0:00:06]} Rd5 {[%emt 0:00:11]} 65. Bc4 {[%emt 0:00:07]} Rc5 {[%emt 0:00:08]} 66. Ra4 {[%emt 0:00:06]} Kf5 {[%emt 0:01:09]} 67. Kd4 {[%emt 0:00:07]} Re5 {[%emt 0:00:43]} 68. Bd3+ {[%emt 0:00:47]} Kf6 {[%emt 0:00:01]} 69. Ra1 {[%emt 0:00:45]} Re6 {[%emt 0:01:27]} 70. Be4 {[%emt 0:00:29]} Rb6 {[%emt 0:01:47]} 71. Rf1+ {[%emt 0:00:39]} Ke7 {[%emt 0:01:06]} 72. Bd5 {[%emt 0:00:24]} Rf6 {[%emt 0:01:17]} 73. Ra1 {[%emt 0:00:10]} Kd6 {[%emt 0:01:31]} 74. Ra5 {[%emt 0:00:06]} Rf4+ {[%emt 0:00:23]} 75. Be4 {[%emt 0:00:03]} Rf6 {[%emt 0:00:40]} 76. Bf5 {[%emt 0:00:05]} Kc7 {[%emt 0:00:05]} 77. Ke5 {[%emt 0:00:12]} Kb6 {[%emt 0:00:31]} 78. Ra1 {[%emt 0:00:13]} Rh6 {[%emt 0:00:52]} 79. Be6 {[%emt 0:00:19]} Kc5 {[%emt 0:00:26]} 80. Rc1+ {[%emt 0:00:38]} Kb4 {[%emt 0:00:01]} 81. Kd6 {[%emt 0:01:10]} Rh4 {[%emt 0:00:26]} 82. Rc8 {[%emt 0:01:51]} Rd4+ {[%emt 0:00:15]} 83. Bd5 {[%emt 0:00:04]} Rh4 {[%emt 0:00:06]} 84. Rb8+ {[%emt 0:00:35]} Kc3 {[%emt 0:00:01]} 85. Rb3+ {[%emt 0:00:10]} Kd2 {[%emt 0:00:20]} 86. Ke5 {[%emt 0:00:09]} Ke2 {[%emt 0:00:42]} 87. Be4 {[%emt 0:00:14]} Rh8 {[%emt 0:00:13]} 88. Kd4 {[%emt 0:01:48]} Rd8+ {[%emt 0:00:39]} 89. Bd5 {[%emt 0:00:01]} Kf2 {[%emt 0:01:35]} 90. Rf3+ {[%emt 0:00:04]} Ke2 {[%emt 0:00:54]} 91. Rf5 {[%emt 0:00:59]} Rd6 {[%emt 0:00:28]} 92. Re5+ {[%emt 0:00:11]} Kf2 {[%emt 0:01:02]} 93. Rg5 {[%emt 0:00:04]} Rd8 {[%emt 0:00:42]} 94. Rg2+ {[%emt 0:00:07]} Kf1 {[%emt 0:00:09]} 95. Ra2 {[%emt 0:00:23]} Kg1 {[%emt 0:00:47]} 96. Ke4 {[%emt 0:00:25]} Rd7 {[%emt 0:01:18]} 97. Rd2 {[%emt 0:00:23]} Ra7 {[%emt 0:00:59]} 98. Kf4 {[%emt 0:01:02]} Kf1 {[%emt 0:01:07]} 99. Bf3 {[%emt 0:02:27]} Ke1 {[%emt 0:00:54]} 100. Rb2 {[%emt 0:01:44]} Ra3 {[%emt 0:02:14]} 101. Kg3 {[%emt 0:00:08]} Re3 {[%emt 0:00:06]} 102. Kf4 {[%emt 0:01:09]} Rd3 {[%emt 0:00:40]} 103. Rh2 {[%emt 0:02:10]} Rd2 {[%emt 0:00:29]} 104. Rxd2 {[%emt 0:00:17]} Kxd2 105. Ke4 1/2-1/2

[Event "79th ARM-ch 1st League 2018"]
[Site "Yerevan"]
[Date "2018.08.17"]
[Round "8"]
[White "Gharibyan, Mamikon"]
[Black "Babujian, Levon"]
[Result "0-1"]
[ECO "D91"]
[WhiteElo "2341"]
[BlackElo "2459"]
[Annotator "RC"]
[PlyCount "122"]
[EventDate "2018.08.09"]
[EventType "tourn"]
[EventCountry "ARM"]
[SourceTitle "playchess.com"]
[Source "ChessBase"]
[SourceQuality "1"]
[TimeControl "40/5400+30:1800+30"]

1. d4 {[%emt 0:00:14]} Nf6 {[%emt 0:00:00]} 2. c4 {[%emt 0:00:41]} g6 {[%emt 0:00:00]} 3. Nc3 {[%emt 0:00:54]} d5 {[%emt 0:00:00]} 4. Nf3 {[%emt 0:02:05]} Bg7 {[%emt 0:00:15]} 5. Bg5 {[%emt 0:04:32]} Ne4 {[%emt 0:01:04]} 6. Bh4 {[%emt 0:02:50]} c5 {[%emt 0:04:09]} 7. cxd5 {[%emt 0:06:56]} Nxc3 {[%emt 0:06:37]} 8. bxc3 {[%emt 0:00:08]} cxd4 {[%emt 0:00:36]} 9. cxd4 {[%emt 0:01:31]} Qxd5 {[%emt 0:00:14]} 10. e3 {[%emt 0:01:25]} Nc6 {[%emt 0:00:05]} 11. Be2 {[%emt 0:09:09]} O-O {[%emt 0:01:34]} 12. O-O {[%emt 0:00:27]} Bf5 {[%emt 0:00:41]} 13. Bg3 {[%emt 0:03:48]} Rac8 {[%emt 0:02:31]} 14. Qb3 {[%emt 0:06:26]} Qxb3 {[%emt 0:02:32]} 15. axb3 {[%emt 0:00:49]} a6 {[%emt 0:00:11]} 16. Rfc1 {[%emt 0:03:56]} Nb4 {[%emt 0:02:55]} 17. Rc4 {[%emt 0:01:19]} Nc2 {[%emt 0:05:08]} 18. Rc1 {[%emt 0:09:23]} b5 {[%emt 0:00:24]} 19. Rc7 {[%emt 0:02:06]} Bh6 {[%emt 0:05:42]} 20. Kh1 {[%emt 0:05:18]} Nb4 {[%emt 0:12:57]} 21. Ne5 {[%emt 0:08:10]} Rxc7 {[%emt 0:04:47]} 22. Rxc7 {[%emt 0:00:08]} Rc8 {[%emt 0:00:38]} 23. Rxc8+ {[%emt 0:04:24]} Bxc8 {[%emt 0:00:16]} 24. Nd3 {[%emt 0:01:52]} Nxd3 {[%emt 0:02:20]} 25. Bxd3 {[%emt 0:01:01]} f5 {[%emt 0:02:07]} 26. Bc7 {[%emt 0:07:32]} Kf7 {[%emt 0:01:06]} 27. Kg1 {[%emt 0:02:52]} Ke6 {[%emt 0:01:28]} 28. Kf1 {[%emt 0:00:42]} Bb7 {[%emt 0:00:06]} 29. h3 {[%emt 0:04:08]} Kd7 {[%emt 0:03:05]} 30. Bb6 {[%emt 0:00:54]} Bd5 {[%emt 0:01:05]} 31. b4 {[%emt 0:01:06]} Kc6 {[%emt 0:01:33]} 32. Bc5 {[%emt 0:01:27]} e5 {[%emt 0:00:36]} 33. g4 {[%emt 0:02:31]} e4 {[%emt 0:01:12]} 34. Bc2 {[%emt 0:00:47]} Bc4+ {[%emt 0:02:35]} 35. Kg2 {[%emt 0:00:43]} Kd5 {[%emt 0:08:04]} 36. gxf5 {[%emt 0:01:12]} gxf5 {[%emt 0:00:05]} 37. f4 {[%emt 0:00:44]} Bg7 {[%emt 0:02:07]} 38. Bd1 {[%emt 0:01:40]} Bf6 {[%emt 0:00:31]} 39. Bh5 {[%emt 0:01:49]} Ke6 {[%emt 0:10:28]} 40. Be8 {[%emt 0:00:00]} Bh4 {[%emt 0:00:00]} 41. Bb6 {[%emt 0:06:15]} Be1 {[%emt 0:09:12]} 42. Ba5 {[%emt 0:00:47]} Kd6 {[%emt 0:00:45]} 43. Bh5 {[%emt 0:03:20]} Bh4 {[%emt 0:01:33]} 44. Kg1 {[%emt 0:01:30]} Be6 {[%emt 0:05:41]} 45. Bd1 {[%emt 0:01:25]} Bf7 {[%emt 0:00:11]} 46. Kg2 {[%emt 0:01:50]} Kc6 {[%emt 0:02:04]} 47. Kf1 {[%emt 0:00:55]} Be7 {[%emt 0:01:27]} 48. Ke1 {[%emt 0:00:50]} h5 {[%emt 0:01:07]} 49. Kd2 {[%emt 0:10:03]} Bh4 {[%emt 0:02:27]} 50. Be2 {[%emt 0:02:04]} Be7 {[%emt 0:09:56]} 51. Kc3 {[%emt 0:00:50]} h4 {[%emt 0:00:46]} 52. Kd2 {[%emt 0:03:42]} Bc4 {[%emt 0:10:10]} 53. Bh5 {[%emt 0:03:48]} Bf1 {[%emt 0:00:42]} 54. Be8+ {[%emt 0:00:05]} Kb7 {[%emt 0:00:37]} 55. Bd7 {[%emt 0:01:26]} Bxh3 {[%emt 0:00:08]} 56. Ke2 {[%emt 0:00:38]} Bg4+ {[%emt 0:00:49]} 57. Kf1 {[%emt 0:00:47]} h3 {[%emt 0:01:03]} 58. d5 {[%emt 0:00:14]} Bh4 {[%emt 0:04:04]} 59. Bc6+ {[%emt 0:00:43]} Ka7 {[%emt 0:00:04]} 60. d6 {[%emt 0:00:27]} Bf3 {[%emt 0:00:10]} 61. Kg1 {[%emt 0:00:34]} Bg3 {[%emt 0:00:06]} 0-1

[Event "79th ARM-ch 1st League 2018"]
[Site "Yerevan"]
[Date "2018.08.19"]
[Round "10"]
[White "Harutyunian, Tigran K"]
[Black "Babujian, Levon"]
[Result "1-0"]
[ECO "D38"]
[WhiteElo "2504"]
[BlackElo "2459"]
[Annotator "ChessBase"]
[PlyCount "97"]
[EventDate "2018.08.09"]
[EventType "tourn"]
[EventCountry "ARM"]
[SourceTitle "playchess.com"]
[Source "ChessBase"]
[SourceQuality "1"]
[TimeControl "40/5400+30:1800+30"]

1. d4 {[%emt 0:00:00]} d5 {[%emt 0:00:00]} 2. Nf3 {[%emt 0:00:06]} Nf6 {[%emt 0:00:00]} 3. c4 {[%emt 0:00:08]} e6 {[%emt 0:00:17]} 4. Nc3 {[%emt 0:00:54]} Bb4 {[%emt 0:00:08]} 5. g3 {[%emt 0:02:51]} O-O {[%emt 0:02:30]} 6. Bg2 {[%emt 0:00:14]} dxc4 {[%emt 0:00:13]} 7. O-O {[%emt 0:00:16]} Nc6 {[%emt 0:02:30]} 8. Qa4 {[%emt 0:02:17]} a6 {[%emt 0:07:42]} 9. Rd1 {[%emt 0:32:03]} Nd5 {[%emt 0:07:08]} 10. Qc2 {[%emt 0:02:23]} Be7 {[%emt 0:01:18]} 11. e4 {[%emt 0:04:21]} Ndb4 {[%emt 0:01:37]} 12. Qe2 {[%emt 0:00:19]} Nd3 {[%emt 0:00:48]} 13. Be3 {[%emt 0:00:54]} f5 {[%emt 0:05:33]} 14. exf5 {[%emt 0:06:37]} exf5 {[%emt 0:00:22]} 15. d5 {[%emt 0:04:11]} Ncb4 {[%emt 0:07:32]} 16. a3 {[%emt 0:02:41]} f4 {[%emt 0:08:18]} 17. gxf4 {[%emt 0:03:02]} Nxd5 {[%emt 0:02:04]} 18. Nxd5 {[%emt 0:01:00]} Qxd5 {[%emt 0:00:05]} 19. b3 {[%emt 0:01:37]} Qe4 {[%emt 0:08:43]} 20. Qc2 {[%emt 0:13:52]} Nc5 {[%emt 0:03:39]} 21. Qc3 {[%emt 0:01:32]} Qf5 {[%emt 0:07:37]} 22. b4 {[%emt 0:03:26]} Nb3 {[%emt 0:04:36]} 23. Qxc4+ {[%emt 0:01:15]} Be6 {[%emt 0:00:41]} 24. Qxc7 {[%emt 0:00:04]} Nxa1 {[%emt 0:00:38]} 25. Qxe7 {[%emt 0:01:03]} Nc2 {[%emt 0:00:51]} 26. Ng5 {[%emt 0:03:46]} Rae8 {[%emt 0:02:01]} 27. Qxb7 {[%emt 0:01:07]} Rd8 {[%emt 0:00:18]} 28. Rc1 {[%emt 0:00:47]} Bd5 {[%emt 0:00:56]} 29. Qxa6 {[%emt 0:04:48]} Bxg2 {[%emt 0:01:09]} 30. Kxg2 {[%emt 0:00:15]} Qg4+ {[%emt 0:03:36]} 31. Kh1 {[%emt 0:00:02]} Rd1+ {[%emt 0:02:30]} 32. Rxd1 {[%emt 0:00:07]} Qxd1+ {[%emt 0:00:07]} 33. Kg2 {[%emt 0:00:02]} Qd5+ {[%emt 0:04:04]} 34. Kg3 {[%emt 0:01:07]} Ra8 {[%emt 0:05:09]} 35. Qe2 {[%emt 0:01:40]} Nxa3 {[%emt 0:02:26]} 36. Bc5 {[%emt 0:00:52]} Nc4 {[%emt 0:03:05]} 37. Qe7 {[%emt 0:00:10]} Nd2 {[%emt 0:02:07]} 38. Bd4 {[%emt 0:00:54]} Ne4+ {[%emt 0:06:01]} 39. Qxe4 {[%emt 0:00:32]} Ra3+ {[%emt 0:00:05]} 40. f3 {[%emt 0:00:00]} Qxe4 {[%emt 0:00:00]} 41. Nxe4 {[%emt 0:01:00]} Rb3 {[%emt 0:00:48]} 42. Bc5 {[%emt 0:00:13]} Kf7 {[%emt 0:02:19]} 43. f5 {[%emt 0:00:26]} g6 {[%emt 0:01:49]} 44. f6 {[%emt 0:00:59]} Ke6 {[%emt 0:00:22]} 45. b5 {[%emt 0:00:27]} h6 {[%emt 0:00:46]} 46. b6 {[%emt 0:00:37]} Rb1 {[%emt 0:00:34]} 47. Bd4 {[%emt 0:00:59]} g5 {[%emt 0:00:55]} 48. b7 {[%emt 0:00:11]} h5 {[%emt 0:00:45]} 49. Nxg5+ {[%emt 0:00:16]} 1-0

[Event "79th ARM-ch 1st League 2018"]
[Site "Yerevan"]
[Date "2018.08.19"]
[Round "10"]
[White "Mikaelyan, Arman"]
[Black "Sargsyan, Tigran R"]
[Result "1/2-1/2"]
[ECO "D11"]
[WhiteElo "2496"]
[BlackElo "2136"]
[Annotator "ChessBase"]
[PlyCount "122"]
[EventDate "2018.08.09"]
[EventType "tourn"]
[EventCountry "ARM"]
[SourceTitle "playchess.com"]
[Source "ChessBase"]
[SourceQuality "1"]
[TimeControl "40/5400+30:1800+30"]

1. d4 {[%emt 0:00:00]} d5 {[%emt 0:00:00]} 2. c4 {[%emt 0:00:02]} c6 {[%emt 0:00:00]} 3. Nf3 {[%emt 0:00:05]} Nf6 {[%emt 0:00:00]} 4. Qb3 {[%emt 0:00:05]} dxc4 {[%emt 0:00:14]} 5. Qxc4 {[%emt 0:00:05]} Bf5 {[%emt 0:00:05]} 6. g3 {[%emt 0:00:30]} e6 {[%emt 0:00:25]} 7. Bg2 {[%emt 0:00:06]} Nbd7 {[%emt 0:00:05]} 8. O-O {[%emt 0:00:20]} Be7 {[%emt 0:00:20]} 9. e3 {[%emt 0:00:08]} O-O {[%emt 0:00:10]} 10. Qe2 {[%emt 0:00:16]} Qc7 {[%emt 0:01:47]} 11. Rd1 {[%emt 0:02:38]} e5 {[%emt 0:01:04]} 12. h3 {[%emt 0:00:27]} exd4 {[%emt 0:13:20]} 13. Nxd4 {[%emt 0:00:26]} Be4 {[%emt 0:02:59]} 14. Nc3 {[%emt 0:03:12]} Bxg2 {[%emt 0:00:35]} 15. Kxg2 {[%emt 0:00:13]} Rfe8 {[%emt 0:02:54]} 16. b3 {[%emt 0:01:17]} Qa5 {[%emt 0:03:29]} 17. Bb2 {[%emt 0:01:12]} Ba3 {[%emt 0:05:10]} 18. Bxa3 {[%emt 0:01:09]} Qxa3 {[%emt 0:04:48]} 19. g4 {[%emt 0:00:10]} Qa5 {[%emt 0:02:39]} 20. Rac1 {[%emt 0:03:09]} Nb6 {[%emt 0:10:42]} 21. Nf5 {[%emt 0:02:44]} Nbd5 {[%emt 0:11:40]} 22. Nxd5 {[%emt 0:00:24]} Nxd5 {[%emt 0:00:24]} 23. Qb2 {[%emt 0:00:18]} f6 {[%emt 0:02:17]} 24. Rd4 {[%emt 0:02:34]} Rad8 {[%emt 0:05:35]} 25. b4 {[%emt 0:00:41]} Qb6 {[%emt 0:02:02]} 26. Kg1 {[%emt 0:02:39]} Re5 {[%emt 0:08:10]} 27. Qb3 {[%emt 0:05:39]} g6 {[%emt 0:03:28]} 28. Ng3 {[%emt 0:00:13]} Rde8 {[%emt 0:02:01]} 29. Rc5 {[%emt 0:04:55]} Kg7 {[%emt 0:07:05]} 30. Qc4 {[%emt 0:08:02]} R8e7 {[%emt 0:03:38]} 31. Ne2 {[%emt 0:21:39]} Nc7 {[%emt 0:01:53]} 32. Nc3 {[%emt 0:06:18]} Rxc5 {[%emt 0:02:24]} 33. bxc5 {[%emt 0:00:14]} Qa5 {[%emt 0:00:45]} 34. h4 {[%emt 0:07:49]} Nb5 {[%emt 0:01:18]} 35. Re4 {[%emt 0:02:59]} Rxe4 {[%emt 0:00:37]} 36. Nxe4 {[%emt 0:00:04]} Qd8 {[%emt 0:00:42]} 37. g5 {[%emt 0:02:25]} fxg5 {[%emt 0:01:08]} 38. Nxg5 {[%emt 0:01:21]} Qd1+ {[%emt 0:01:11]} 39. Kh2 {[%emt 0:00:37]} Qd5 {[%emt 0:01:11]} 40. Qf4 {[%emt 0:00:00]} h6 {[%emt 0:00:00]} 41. Ne4 {[%emt 0:06:32]} Qf5 {[%emt 0:16:58]} 42. Kg3 {[%emt 0:00:36]} b6 {[%emt 0:08:13]} 43. a4 {[%emt 0:02:06]} Qxf4+ {[%emt 0:01:26]} 44. Kxf4 {[%emt 0:00:04]} Na3 {[%emt 0:00:07]} 45. Ke5 {[%emt 0:17:13]} Nc4+ {[%emt 0:01:37]} 46. Ke6 {[%emt 0:01:55]} Nb2 {[%emt 0:00:29]} 47. Nc3 {[%emt 0:06:04]} Nd3 {[%emt 0:02:20]} 48. cxb6 {[%emt 0:01:03]} axb6 {[%emt 0:00:06]} 49. Kd6 {[%emt 0:00:08]} g5 {[%emt 0:04:26]} 50. hxg5 {[%emt 0:01:02]} h5 {[%emt 0:00:11]} 51. Kxc6 {[%emt 0:06:49]} Nxf2 {[%emt 0:00:31]} 52. Kxb6 {[%emt 0:00:21]} h4 {[%emt 0:00:07]} 53. Ne2 {[%emt 0:02:22]} h3 {[%emt 0:01:08]} 54. Ng3 {[%emt 0:00:31]} h2 {[%emt 0:00:16]} 55. a5 {[%emt 0:02:05]} Kg6 {[%emt 0:00:31]} 56. a6 {[%emt 0:02:51]} Kxg5 {[%emt 0:00:05]} 57. a7 {[%emt 0:00:24]} Kg4 {[%emt 0:00:05]} 58. Nh1 {[%emt 0:00:38]} Nxh1 {[%emt 0:00:05]} 59. a8=Q {[%emt 0:00:03]} Ng3 {[%emt 0:00:16]} 60. Qg8+ {[%emt 0:00:46]} Kf3 {[%emt 0:00:50]} 61. Qd5+ {[%emt 0:00:11]} Kxe3 {[%emt 0:00:50]} 1/2-1/2

[Event "79th ARM-ch 1st League 2018"]
[Site "Yerevan"]
[Date "2018.08.19"]
[Round "10"]
[White "Sargsyan, Shant"]
[Black "Hoghmrtsyan, Artur"]
[Result "1-0"]
[ECO "A13"]
[WhiteElo "2472"]
[BlackElo "2157"]
[Annotator "ChessBase"]
[PlyCount "127"]
[EventDate "2018.08.09"]
[EventType "tourn"]
[EventCountry "ARM"]
[SourceTitle "playchess.com"]
[Source "ChessBase"]
[SourceQuality "1"]
[TimeControl "40/5400+30:1800+30"]

1. Nf3 {[%emt 0:00:27]} Nf6 {[%emt 0:00:07]} 2. c4 {[%emt 0:00:43]} e6 {[%emt 0:00:09]} 3. g3 {[%emt 0:00:13]} d5 {[%emt 0:00:11]} 4. Bg2 {[%emt 0:00:25]} dxc4 {[%emt 0:00:27]} 5. Qa4+ {[%emt 0:01:09]} c6 {[%emt 0:00:47]} 6. Qxc4 {[%emt 0:00:28]} b5 {[%emt 0:00:26]} 7. Qb3 {[%emt 0:01:47]} Bb7 {[%emt 0:01:39]} 8. O-O {[%emt 0:01:26]} a6 {[%emt 0:04:58]} 9. a4 {[%emt 0:01:25]} Nbd7 {[%emt 0:05:52]} 10. d4 {[%emt 0:00:47]} c5 {[%emt 0:03:54]} 11. axb5 {[%emt 0:02:52]} Bd5 {[%emt 0:00:32]} 12. Qd1 {[%emt 0:05:05]} axb5 {[%emt 0:00:20]} 13. Rxa8 {[%emt 0:00:04]} Qxa8 {[%emt 0:01:36]} 14. Bg5 {[%emt 0:02:28]} b4 {[%emt 0:07:18]} 15. Bxf6 {[%emt 0:08:38]} Nxf6 {[%emt 0:00:57]} 16. Qd3 {[%emt 0:00:38]} c4 {[%emt 0:10:37]} 17. Qc2 {[%emt 0:02:19]} Be7 {[%emt 0:13:49]} 18. Nbd2 {[%emt 0:00:43]} b3 {[%emt 0:00:39]} 19. Qb1 {[%emt 0:02:40]} O-O {[%emt 0:00:54]} 20. Rc1 {[%emt 0:00:26]} Rc8 {[%emt 0:02:34]} 21. Ne1 {[%emt 0:03:55]} Qa4 {[%emt 0:08:03]} 22. e4 {[%emt 0:07:32]} Bb7 {[%emt 0:00:17]} 23. Nef3 {[%emt 0:01:48]} Nd7 {[%emt 0:08:41]} 24. Bf1 {[%emt 0:01:32]} Nb6 {[%emt 0:01:32]} 25. Ne5 {[%emt 0:02:23]} Ba6 {[%emt 0:00:42]} 26. Qa1 {[%emt 0:06:19]} Bb4 {[%emt 0:12:06]} 27. Nxb3 {[%emt 0:02:52]} cxb3 {[%emt 0:02:51]} 28. Bxa6 {[%emt 0:00:09]} Qxa1 {[%emt 0:07:14]} 29. Rxa1 {[%emt 0:00:13]} Ra8 {[%emt 0:00:14]} 30. Nd3 {[%emt 0:01:18]} Be7 {[%emt 0:00:44]} 31. Nc1 {[%emt 0:04:17]} e5 {[%emt 0:02:30]} 32. dxe5 {[%emt 0:01:08]} Nd7 {[%emt 0:00:05]} 33. Nxb3 {[%emt 0:00:22]} Nxe5 {[%emt 0:00:20]} 34. f4 {[%emt 0:21:28]} Rb8 {[%emt 0:00:35]} 35. fxe5 {[%emt 0:00:52]} Rxb3 {[%emt 0:00:05]} 36. Bc4 {[%emt 0:00:10]} Bc5+ {[%emt 0:01:15]} 37. Kh1 {[%emt 0:00:27]} Rb8 {[%emt 0:00:10]} 38. Rf1 {[%emt 0:02:45]} Rb7 {[%emt 0:00:17]} 39. e6 {[%emt 0:04:59]} fxe6 {[%emt 0:00:05]} 40. Bxe6+ {[%emt 0:00:00]} Kh8 {[%emt 0:00:00]} 41. Rf5 {[%emt 0:01:53]} Bd6 {[%emt 0:04:11]} 42. Rd5 {[%emt 0:07:59]} Rb6 {[%emt 0:02:34]} 43. Rd2 {[%emt 0:01:26]} g6 {[%emt 0:00:52]} 44. Bc4 {[%emt 0:00:59]} Kg7 {[%emt 0:01:33]} 45. Kg2 {[%emt 0:00:07]} Kf6 {[%emt 0:04:50]} 46. b3 {[%emt 0:00:15]} h5 {[%emt 0:00:44]} 47. h4 {[%emt 0:01:21]} Rc6 {[%emt 0:01:05]} 48. Kf3 {[%emt 0:01:41]} Rb6 {[%emt 0:01:17]} 49. Rd5 {[%emt 0:01:40]} Rc6 {[%emt 0:01:06]} 50. Rb5 {[%emt 0:02:05]} Bc7 {[%emt 0:00:58]} 51. Rd5 {[%emt 0:05:04]} Bd6 {[%emt 0:00:13]} 52. g4 {[%emt 0:00:12]} hxg4+ {[%emt 0:00:16]} 53. Kxg4 {[%emt 0:00:01]} Rb6 {[%emt 0:00:32]} 54. Kf3 {[%emt 0:01:57]} Rc6 {[%emt 0:01:37]} 55. Ke3 {[%emt 0:00:48]} Be5 {[%emt 0:04:01]} 56. Ke2 {[%emt 0:03:43]} Rc7 {[%emt 0:01:50]} 57. Kf3 {[%emt 0:00:26]} Rh7 {[%emt 0:02:16]} 58. Kg4 {[%emt 0:00:16]} Rc7 {[%emt 0:00:23]} 59. Rd8 {[%emt 0:00:21]} Rc5 {[%emt 0:01:27]} 60. Rf8+ {[%emt 0:00:58]} Ke7 {[%emt 0:00:21]} 61. Rf7+ {[%emt 0:01:47]} Kd6 {[%emt 0:00:13]} 62. Kg5 {[%emt 0:01:09]} Bg3+ {[%emt 0:00:26]} 63. Bd5 {[%emt 0:00:05]} Rc1 {[%emt 0:02:58]} 64. Rf6+ {[%emt 0:00:17] Kxd5} 1-0